fUSD/lending_fUSD_20260601
["ID","MTS","AMOUNT","RATE_DAILY","PERIOD"]
[423623499,1780263058000,-151.0,0.00036887,7]
[423623503,1780263058000,-189.322484,0.00036887,7]
[423623500,1780263058000,-151.0,0.00036887,7]
[423623496,1780263058000,-2105.252162,0.00036887,7]
[423623501,1780263058000,-151.0,0.00036887,7]
[423623508,1780263058000,-5000.0,0.00036976,2]
[423623506,1780263058000,-250.52351855,0.00036899,3]
[423623486,1780263058000,-1836.785998,0.00036887,7]
[423623497,1780263058000,-2105.252162,0.00036887,7]
[423623487,1780263058000,-1334.460671,0.00036887,7]
[423623473,1780263058000,-151.0,0.00036887,7]
[423623479,1780263058000,-1334.460671,0.00036887,7]
[423623512,1780263058000,-5000.0,0.00036976,2]
[423623461,1780263058000,-13635.2411,0.00036861,2]
[423623464,1780263058000,-466019.8559829,0.00036887,2]
[423623462,1780263058000,-300.0,0.00036886,10]
[423623463,1780263058000,-8035.8546256,0.00036887,2]
[423623471,1780263058000,-518.696371,0.00036887,7]
[423623469,1780263058000,-649.601898,0.00036887,7]
[423623465,1780263058000,-151.0,0.00036887,7]
[423623467,1780263058000,-649.601898,0.00036887,7]
[423623468,1780263058000,-649.601898,0.00036887,7]
[423623472,1780263058000,-518.696371,0.00036887,7]
[423623466,1780263058000,-649.601898,0.00036887,7]
[423623470,1780263058000,-518.696371,0.00036887,7]
[423623474,1780263058000,-518.696371,0.00036887,7]
[423623476,1780263058000,-181.538058,0.00036887,7]
[423623477,1780263058000,-173.417716,0.00036887,7]
[423623475,1780263058000,-151.0,0.00036887,7]
[423623478,1780263058000,-151.0,0.00036887,7]
[423623480,1780263058000,-151.0,0.00036887,7]
[423623481,1780263058000,-1836.785998,0.00036887,7]
[423623482,1780263058000,-1334.460671,0.00036887,7]
[423623484,1780263058000,-1836.785998,0.00036887,7]
[423623507,1780263058000,-157.4,0.00036959,60]
[423623494,1780263058000,-151.0,0.00036887,7]
[423623515,1780263058000,-250.0,0.00036976,2]
[423623551,1780263058000,-156.64981509,0.000373,30]
[423623545,1780263058000,-334.48622721,0.00037251,120]
[423623548,1780263058000,-1377.42282658,0.00037299,30]
[423623547,1780263058000,-626.0,0.00037282,13]
[423623541,1780263058000,-13635.2411,0.00037117,2]
[423623539,1780263058000,-2000.0,0.000371,7]
[423623532,1780263058000,-333.0,0.00037,120]
[423623540,1780263058000,-234676.59872311,0.000371,2]
[423623550,1780263058000,-156.64981511,0.000373,30]
[423623549,1780263058000,-2005.9555727,0.00037299,30]
[423623533,1780263058000,-168.9142955,0.00037,2]
[423623535,1780263058000,-26897.0,0.00037001,2]
[423623546,1780263058000,-157.4,0.00037259,60]
[423623544,1780263058000,-3271.95164303,0.00037251,120]
[423623538,1780263058000,-157.4,0.00037059,60]
[423623556,1780263058000,-13635.2411,0.00037373,2]
[423623553,1780263058000,-261.60078704,0.000373,30]
[423623555,1780263058000,-157.4,0.00037359,60]
[423623552,1780263058000,-156.64981509,0.000373,30]
[423623554,1780263058000,-152.0,0.00037315,7]
[423623504,1780263058000,-189.322484,0.00036887,7]
[423623531,1780263058000,-460.0,0.00037,30]
[423623530,1780263058000,-365.0,0.00037,2]
[423623542,1780263058000,-157.4,0.00037159,60]
[423623543,1780263058000,-13635.2411,0.00037245,2]
[423623511,1780263058000,-5000.0,0.00036976,2]
[423623534,1780263058000,-4500.0,0.00037,2]
[423623513,1780263058000,-5000.0,0.00036976,2]
[423623514,1780263058000,-5822.54095053,0.00036976,2]
[423623509,1780263058000,-5000.0,0.00036976,2]
[423623510,1780263058000,-5000.0,0.00036976,2]
[423623524,1780263058000,-1406.279124,0.00036989,7]
[423623523,1780263058000,-1406.279124,0.00036989,7]
[423623517,1780263058000,-250.0,0.00036976,2]
[423623516,1780263058000,-250.0,0.00036976,2]
[423623519,1780263058000,-250.0,0.00036976,2]
[423623518,1780263058000,-250.0,0.00036976,2]
[423623521,1780263058000,-266.58690163,0.00036976,2]
[423623527,1780263058000,-4987.20765738,0.00037,120]
[423623526,1780263058000,-1406.279124,0.00036989,7]
[423623525,1780263058000,-1406.279124,0.00036989,7]
[423623522,1780263058000,-13635.2411,0.00036989,2]
[423623528,1780263058000,-150.0,0.00037,2]
[423623537,1780263058000,-183.63902555,0.00037033,2]
[423623520,1780263058000,-250.0,0.00036976,2]
[423623529,1780263058000,-181.82,0.00037,2]
[423623536,1780263058000,-510.84206724,0.00037019,60]
[423623607,1780263059000,-157.4,0.00037659,60]
[423623603,1780263059000,-681.7622,0.00037629,2]
[423623604,1780263059000,-25000.0,0.00037637,10]
[423623597,1780263059000,-25000.0,0.00037601,10]
[423623589,1780263059000,-355.0,0.00037566,2]
[423623594,1780263059000,-4418.72541808,0.0003759,2]
[423623591,1780263059000,-25000.0,0.00037575,10]
[423623590,1780263059000,-25000.0,0.00037566,10]
[423623593,1780263059000,-25000.0,0.00037584,10]
[423623605,1780263059000,-25000.0,0.00037645,10]
[423623592,1780263059000,-436.5,0.00037578,120]
[423623595,1780263059000,-25000.0,0.00037593,10]
[423623601,1780263059000,-25000.0,0.00037628,10]
[423623620,1780263059000,-5000.0,0.00037771,2]
[423623598,1780263059000,-25000.0,0.0003761,10]
[423623608,1780263059000,-25000.0,0.00037663,10]
[423623599,1780263059000,-25000.0,0.00037619,10]
[423623602,1780263059000,-13635.2415,0.00037629,2]
[423623606,1780263059000,-25000.0,0.00037654,10]
[423623600,1780263059000,-500.0,0.00037621,30]
[423623610,1780263059000,-150.0,0.00037694,2]
[423623614,1780263059000,-157.4,0.00037759,60]
[423623621,1780263059000,-250.0,0.00037771,2]
[423623611,1780263059000,-1590.0,0.0003771,11]
[423623609,1780263059000,-4648.3,0.00037665,30]
[423623612,1780263059000,-1590.0,0.00037735,11]
[423623588,1780263059000,-6732.367104,0.00037562,2]
[423623596,1780263059000,-1046.2056,0.000376,120]
[423623586,1780263059000,-1273.881,0.00037562,2]
[423623564,1780263059000,-250.0,0.00037373,2]
[423623584,1780263059000,-50000.0,0.00037524,2]
[423623560,1780263059000,-5000.0,0.00037373,2]
[423623558,1780263059000,-5000.0,0.00037373,2]
[423623562,1780263059000,-5000.0,0.00037373,2]
[423623559,1780263059000,-5000.0,0.00037373,2]
[423623561,1780263059000,-5000.0,0.00037373,2]
[423623557,1780263059000,-5000.0,0.00037373,2]
[423623563,1780263059000,-5000.0,0.00037373,2]
[423623567,1780263059000,-250.0,0.00037373,2]
[423623565,1780263059000,-250.0,0.00037373,2]
[423623570,1780263059000,-250.0,0.00037373,2]
[423623573,1780263059000,-150.0,0.00037449,2]
[423623619,1780263059000,-5000.0,0.00037771,2]
[423623566,1780263059000,-250.0,0.00037373,2]
[423623569,1780263059000,-250.0,0.00037373,2]
[423623572,1780263059000,-407.0,0.00037449,2]
[423623571,1780263059000,-160.16444474,0.00037449,2]
[423623585,1780263059000,-157.4,0.00037559,60]
[423623575,1780263059000,-400.0,0.00037449,2]
[423623574,1780263059000,-150.0,0.00037449,2]
[423623578,1780263059000,-1676.42,0.00037459,2]
[423623583,1780263059000,-13635.2411,0.00037501,2]
[423623577,1780263059000,-592.0,0.00037459,3]
[423623576,1780263059000,-218.87046057,0.00037456,120]
[423623581,1780263059000,-25934.64,0.000375,2]
[423623580,1780263059000,-7635.97,0.000375,2]
[423623582,1780263059000,-210.659953,0.000375,15]
[423623579,1780263059000,-157.4,0.00037459,60]
[423623587,1780263059000,-1209.1745,0.00037562,2]
[423623613,1780263059000,-1590.0,0.00037745,11]
[423623568,1780263059000,-250.0,0.00037373,2]
[423623617,1780263059000,-5000.0,0.00037771,2]
[423623651,1780263059000,-500.0,0.00038082,60]
[423623653,1780263059000,-500.0,0.00038082,60]
[423623654,1780263059000,-500.0,0.00038082,60]
[423623659,1780263059000,-587.0,0.00038082,60]
[423623658,1780263059000,-500.0,0.00038082,60]
[423623662,1780263059000,-272.9051425,0.00038082,60]
[423623661,1780263059000,-500.0,0.00038082,60]
[423623660,1780263059000,-500.0,0.00038082,60]
[423623657,1780263059000,-500.0,0.00038082,60]
[423623652,1780263059000,-500.0,0.00038082,60]
[423623656,1780263059000,-500.0,0.00038082,60]
[423623664,1780263059000,-587.0,0.00038082,60]
[423623674,1780263059000,-587.0,0.00038082,60]
[423623655,1780263059000,-500.0,0.00038082,60]
[423623663,1780263059000,-500.0,0.00038082,60]
[423623675,1780263059000,-587.0,0.00038082,60]
[423623667,1780263059000,-500.0,0.00038082,60]
[423623665,1780263059000,-500.0,0.00038082,60]
[423623673,1780263059000,-587.0,0.00038082,60]
[423623671,1780263059000,-500.0,0.00038082,60]
[423623669,1780263059000,-500.0,0.00038082,60]
[423623670,1780263059000,-587.0,0.00038082,60]
[423623668,1780263059000,-587.0,0.00038082,60]
[423623672,1780263059000,-587.0,0.00038082,60]
[423623679,1780263059000,-587.0,0.00038082,60]
[423623677,1780263059000,-587.0,0.00038082,60]
[423623678,1780263059000,-587.0,0.00038082,60]
[423623676,1780263059000,-587.0,0.00038082,60]
[423623666,1780263059000,-587.0,0.00038082,60]
[423623646,1780263059000,-163.0,0.0003803,11]
[423623616,1780263059000,-5000.0,0.00037771,2]
[423623642,1780263059000,-221.0,0.00038,120]
[423623618,1780263059000,-5000.0,0.00037771,2]
[423623622,1780263059000,-250.0,0.00037771,2]
[423623615,1780263059000,-5000.0,0.00037771,2]
[423623631,1780263059000,-157.4,0.00037859,60]
[423623626,1780263059000,-250.0,0.00037771,2]
[423623625,1780263059000,-250.0,0.00037771,2]
[423623624,1780263059000,-250.0,0.00037771,2]
[423623639,1780263059000,-333.0,0.00038,120]
[423623627,1780263059000,-1590.0,0.00037799,11]
[423623635,1780263059000,-2318.0,0.00037917,11]
[423623623,1780263059000,-250.0,0.00037771,2]
[423623630,1780263059000,-2334.0,0.00037856,11]
[423623633,1780263059000,-500.0,0.00037895,60]
[423623628,1780263059000,-626.0,0.00037816,13]
[423623629,1780263059000,-1590.0,0.00037833,11]
[423623632,1780263059000,-1300.0,0.00037895,60]
[423623634,1780263059000,-500.0,0.00037895,60]
[423623643,1780263059000,-29075.74,0.00038,20]
[423623640,1780263059000,-151.0,0.00038,120]
[423623650,1780263059000,-500.0,0.00038082,60]
[423623644,1780263059000,-850.0,0.00038,2]
[423623649,1780263059000,-500.0,0.00038082,60]
[423623645,1780263059000,-165.16,0.00038014,120]
[423623637,1780263059000,-157.4,0.00037959,60]
[423623641,1780263059000,-399.29893364,0.00038,30]
[423623648,1780263059000,-157.4,0.00038059,60]
[423623638,1780263059000,-460.0,0.00038,30]
[423623636,1780263059000,-1782.8235771,0.00037932,2]
[423623647,1780263059000,-1590.0,0.00038055,11]
[423623721,1780263060000,-565.0,0.00038082,60]
[423623715,1780263060000,-565.0,0.00038082,60]
[423623720,1780263060000,-466.0,0.00038082,60]
[423623722,1780263060000,-466.0,0.00038082,60]
[423623717,1780263060000,-565.0,0.00038082,60]
[423623709,1780263060000,-565.0,0.00038082,60]
[423623723,1780263060000,-565.0,0.00038082,60]
[423623718,1780263060000,-466.0,0.00038082,60]
[423623713,1780263060000,-565.0,0.00038082,60]
[423623724,1780263060000,-466.0,0.00038082,60]
[423623714,1780263060000,-466.0,0.00038082,60]
[423623719,1780263060000,-565.0,0.00038082,60]
[423623716,1780263060000,-466.0,0.00038082,60]
[423623750,1780263060000,-466.0,0.00038082,60]
[423623729,1780263060000,-565.0,0.00038082,60]
[423623727,1780263060000,-565.0,0.00038082,60]
[423623728,1780263060000,-466.0,0.00038082,60]
[423623733,1780263060000,-466.0,0.00038082,60]
[423623730,1780263060000,-466.0,0.00038082,60]
[423623732,1780263060000,-466.0,0.00038082,60]
[423623726,1780263060000,-466.0,0.00038082,60]
[423623731,1780263060000,-565.0,0.00038082,60]
[423623735,1780263060000,-466.0,0.00038082,60]
[423623734,1780263060000,-565.0,0.00038082,60]
[423623737,1780263060000,-466.0,0.00038082,60]
[423623736,1780263060000,-466.0,0.00038082,60]
[423623743,1780263060000,-565.0,0.00038082,60]
[423623711,1780263060000,-565.0,0.00038082,60]
[423623725,1780263060000,-565.0,0.00038082,60]
[423623712,1780263060000,-466.0,0.00038082,60]
[423623700,1780263060000,-500.0,0.00038082,60]
[423623705,1780263060000,-565.0,0.00038082,60]
[423623749,1780263060000,-245.49911136,0.00038082,60]
[423623681,1780263060000,-587.0,0.00038082,60]
[423623682,1780263060000,-587.0,0.00038082,60]
[423623687,1780263060000,-587.0,0.00038082,60]
[423623683,1780263060000,-587.0,0.00038082,60]
[423623680,1780263060000,-587.0,0.00038082,60]
[423623684,1780263060000,-587.0,0.00038082,60]
[423623688,1780263060000,-587.0,0.00038082,60]
[423623686,1780263060000,-587.0,0.00038082,60]
[423623685,1780263060000,-587.0,0.00038082,60]
[423623693,1780263060000,-500.0,0.00038082,60]
[423623701,1780263060000,-500.0,0.00038082,60]
[423623694,1780263060000,-150.25278799,0.00038082,60]
[423623703,1780263060000,-501.83615294,0.00038082,60]
[423623692,1780263060000,-218.52309198,0.00038082,60]
[423623690,1780263060000,-605.83639376,0.00038082,60]
[423623689,1780263060000,-587.0,0.00038082,60]
[423623697,1780263060000,-500.0,0.00038082,60]
[423623696,1780263060000,-500.0,0.00038082,60]
[423623698,1780263060000,-500.0,0.00038082,60]
[423623691,1780263060000,-500.0,0.00038082,60]
[423623695,1780263060000,-500.0,0.00038082,60]
[423623702,1780263060000,-500.0,0.00038082,60]
[423623704,1780263060000,-565.0,0.00038082,60]
[423623708,1780263060000,-565.0,0.00038082,60]
[423623707,1780263060000,-565.0,0.00038082,60]
[423623710,1780263060000,-466.0,0.00038082,60]
[423623706,1780263060000,-565.0,0.00038082,60]
[423623699,1780263060000,-500.0,0.00038082,60]
[423623745,1780263060000,-466.0,0.00038082,60]
[423623751,1780263060000,-500.0,0.00038082,60]
[423623746,1780263060000,-565.0,0.00038082,60]
[423623775,1780263060000,-500.0,0.00038082,60]
[423623779,1780263060000,-500.0,0.00038082,60]
[423623789,1780263060000,-500.0,0.00038082,30]
[423623778,1780263060000,-602.68629337,0.00038082,60]
[423623784,1780263060000,-500.0,0.00038082,30]
[423623786,1780263060000,-500.0,0.00038082,60]
[423623785,1780263060000,-500.0,0.00038082,60]
[423623788,1780263060000,-150.0,0.00038082,60]
[423623780,1780263060000,-500.0,0.00038082,60]
[423623783,1780263060000,-500.0,0.00038082,60]
[423623782,1780263060000,-500.0,0.00038082,60]
[423623781,1780263060000,-500.0,0.00038082,60]
[423623787,1780263060000,-500.0,0.00038082,60]
[423623790,1780263060000,-500.0,0.00038082,60]
[423623794,1780263060000,-500.0,0.00038082,60]
[423623802,1780263060000,-500.0,0.00038082,60]
[423623792,1780263060000,-500.0,0.00038082,30]
[423623800,1780263060000,-500.0,0.00038082,30]
[423623795,1780263060000,-500.0,0.00038082,60]
[423623793,1780263060000,-150.0,0.00038082,60]
[423623798,1780263060000,-500.0,0.00038082,60]
[423623797,1780263060000,-185.30413615,0.00038082,60]
[423623799,1780263060000,-500.0,0.00038082,60]
[423623796,1780263060000,-500.0,0.00038082,30]
[423623801,1780263060000,-633.12700021,0.00038082,60]
[423623804,1780263060000,-500.0,0.00038082,30]
[423623803,1780263060000,-500.0,0.00038082,30]
[423623805,1780263060000,-500.0,0.00038082,60]
[423623739,1780263060000,-466.0,0.00038082,60]
[423623772,1780263060000,-500.0,0.00038082,60]
[423623773,1780263060000,-500.0,0.00038082,60]
[423623791,1780263060000,-500.0,0.00038082,60]
[423623771,1780263060000,-500.0,0.00038082,60]
[423623774,1780263060000,-500.0,0.00038082,60]
[423623742,1780263060000,-466.0,0.00038082,60]
[423623748,1780263060000,-500.0,0.00038082,60]
[423623738,1780263060000,-565.0,0.00038082,60]
[423623741,1780263060000,-565.0,0.00038082,60]
[423623744,1780263060000,-466.0,0.00038082,60]
[423623740,1780263060000,-466.0,0.00038082,60]
[423623747,1780263060000,-500.0,0.00038082,60]
[423623753,1780263060000,-210.25906995,0.00038082,60]
[423623760,1780263060000,-500.0,0.00038082,60]
[423623761,1780263060000,-500.0,0.00038082,60]
[423623752,1780263060000,-500.0,0.00038082,60]
[423623755,1780263060000,-466.0,0.00038082,60]
[423623759,1780263060000,-500.0,0.00038082,60]
[423623757,1780263060000,-468.48877466,0.00038082,60]
[423623765,1780263060000,-500.0,0.00038082,60]
[423623763,1780263060000,-500.0,0.00038082,60]
[423623776,1780263060000,-500.0,0.00038082,60]
[423623769,1780263060000,-500.0,0.00038082,60]
[423623768,1780263060000,-500.0,0.00038082,60]
[423623767,1780263060000,-500.0,0.00038082,60]
[423623777,1780263060000,-500.0,0.00038082,60]
[423623770,1780263060000,-505.11872968,0.00038082,60]
[423623762,1780263060000,-500.0,0.00038082,60]
[423623758,1780263060000,-500.0,0.00038082,60]
[423623764,1780263060000,-500.0,0.00038082,60]
[423623754,1780263060000,-565.0,0.00038082,60]
[423623756,1780263060000,-569.2367486,0.00038082,60]
[423623766,1780263060000,-500.0,0.00038082,60]
[423623851,1780263061000,-500.0,0.00038356,2]
[423623844,1780263061000,-1990.0,0.00038329,120]
[423623852,1780263061000,-500.0,0.00038356,2]
[423623846,1780263061000,-626.0,0.0003835,14]
[423623847,1780263061000,-9860.0912811,0.00038353,2]
[423623853,1780263061000,-500.0,0.00038356,2]
[423623832,1780263061000,-2000.0,0.000382,7]
[423623855,1780263061000,-500.0,0.00038356,2]
[423623854,1780263061000,-500.0,0.00038356,2]
[423623845,1780263061000,-1590.0,0.0003835,11]
[423623843,1780263061000,-1990.0,0.00038329,120]
[423623838,1780263061000,-7635.97,0.000383,2]
[423623850,1780263061000,-500.0,0.00038356,2]
[423623842,1780263061000,-2469.5,0.00038329,120]
[423623849,1780263061000,-1865.36488656,0.00038355,30]
[423623863,1780263061000,-500.0,0.00038356,2]
[423623856,1780263061000,-500.0,0.00038356,2]
[423623858,1780263061000,-157.98011528,0.00038356,2]
[423623859,1780263061000,-500.0,0.00038356,2]
[423623860,1780263061000,-500.0,0.00038356,2]
[423623861,1780263061000,-500.0,0.00038356,2]
[423623864,1780263061000,-500.0,0.00038356,2]
[423623862,1780263061000,-500.0,0.00038356,2]
[423623857,1780263061000,-500.0,0.00038356,2]
[423623868,1780263061000,-500.0,0.00038356,2]
[423623865,1780263061000,-500.0,0.00038356,2]
[423623867,1780263061000,-500.0,0.00038356,2]
[423623866,1780263061000,-500.0,0.00038356,2]
[423623869,1780263061000,-500.0,0.00038356,2]
[423623835,1780263061000,-1590.0,0.00038237,11]
[423623848,1780263061000,-1280.88388877,0.00038355,30]
[423623837,1780263061000,-157.41846495,0.00038259,60]
[423623814,1780263061000,-1328.27659266,0.00038127,30]
[423623841,1780263061000,-2469.5,0.00038329,120]
[423623871,1780263061000,-500.0,0.00038356,2]
[423623811,1780263061000,-166.89214839,0.00038082,30]
[423623808,1780263061000,-500.0,0.00038082,30]
[423623810,1780263061000,-500.0,0.00038082,30]
[423623813,1780263061000,-512.3,0.00038125,30]
[423623815,1780263061000,-1934.38338736,0.00038127,30]
[423623806,1780263061000,-500.0,0.00038082,30]
[423623807,1780263061000,-500.0,0.00038082,60]
[423623809,1780263061000,-649.24403707,0.00038082,60]
[423623812,1780263061000,-8000.0,0.000381,11]
[423623817,1780263061000,-163.0,0.00038152,11]
[423623827,1780263061000,-250.0,0.00038169,2]
[423623816,1780263061000,-7244.9592,0.00038137,60]
[423623818,1780263061000,-157.4,0.00038159,60]
[423623839,1780263061000,-25934.64,0.000383,2]
[423623819,1780263061000,-5000.0,0.00038169,2]
[423623822,1780263061000,-5000.0,0.00038169,2]
[423623826,1780263061000,-250.0,0.00038169,2]
[423623825,1780263061000,-250.0,0.00038169,2]
[423623821,1780263061000,-5000.0,0.00038169,2]
[423623823,1780263061000,-5000.0,0.00038169,2]
[423623824,1780263061000,-250.0,0.00038169,2]
[423623828,1780263061000,-250.0,0.00038169,2]
[423623830,1780263061000,-7635.97,0.000382,2]
[423623829,1780263061000,-163.0,0.00038176,11]
[423623833,1780263061000,-2000.0,0.000382,7]
[423623836,1780263061000,-2319.0,0.00038237,11]
[423623831,1780263061000,-25934.64,0.000382,2]
[423623834,1780263061000,-2266.0,0.000382,7]
[423623840,1780263061000,-2319.0,0.0003832,11]
[423623820,1780263061000,-5000.0,0.00038169,2]
[423623870,1780263061000,-500.0,0.00038356,2]
[423623876,1780263061000,-500.0,0.00038356,2]
[423623873,1780263061000,-336.03712649,0.00038356,2]
[423623899,1780263061000,-2280.95,0.00038356,2]
[423623909,1780263061000,-2280.95,0.00038356,2]
[423623910,1780263061000,-2280.95,0.00038356,2]
[423623915,1780263061000,-1337.61,0.00038356,2]
[423623911,1780263061000,-2281.07781492,0.00038356,2]
[423623919,1780263061000,-1337.61,0.00038356,2]
[423623912,1780263061000,-1337.61,0.00038356,2]
[423623918,1780263061000,-1337.61,0.00038356,2]
[423623914,1780263061000,-1337.61,0.00038356,2]
[423623913,1780263061000,-1337.61,0.00038356,2]
[423623922,1780263061000,-1337.61,0.00038356,2]
[423623917,1780263061000,-1337.61,0.00038356,2]
[423623920,1780263061000,-1337.61,0.00038356,2]
[423623921,1780263061000,-1337.61,0.00038356,2]
[423623901,1780263061000,-2280.95,0.00038356,2]
[423623916,1780263061000,-1337.61,0.00038356,2]
[423623925,1780263061000,-1337.61,0.00038356,2]
[423623935,1780263061000,-1337.74342065,0.00038356,2]
[423623926,1780263061000,-1337.61,0.00038356,2]
[423623934,1780263061000,-1337.61,0.00038356,2]
[423623936,1780263061000,-500.0,0.00038356,2]
[423623923,1780263061000,-1337.61,0.00038356,2]
[423623931,1780263061000,-1337.61,0.00038356,2]
[423623927,1780263061000,-1337.61,0.00038356,2]
[423623932,1780263061000,-1337.61,0.00038356,2]
[423623929,1780263061000,-1337.61,0.00038356,2]
[423623930,1780263061000,-1337.61,0.00038356,2]
[423623933,1780263061000,-1337.61,0.00038356,2]
[423623928,1780263061000,-1337.61,0.00038356,2]
[423623872,1780263061000,-500.0,0.00038356,2]
[423623924,1780263061000,-1337.61,0.00038356,2]
[423623904,1780263061000,-2280.95,0.00038356,2]
[423623937,1780263061000,-500.0,0.00038356,2]
[423623898,1780263061000,-2280.95,0.00038356,2]
[423623938,1780263061000,-500.0,0.00038356,2]
[423623875,1780263061000,-500.0,0.00038356,2]
[423623874,1780263061000,-500.0,0.00038356,2]
[423623877,1780263061000,-500.0,0.00038356,2]
[423623880,1780263061000,-500.0,0.00038356,2]
[423623879,1780263061000,-500.0,0.00038356,2]
[423623878,1780263061000,-500.0,0.00038356,2]
[423623889,1780263061000,-2280.95,0.00038356,2]
[423623906,1780263061000,-2280.95,0.00038356,2]
[423623888,1780263061000,-2280.95,0.00038356,2]
[423623883,1780263061000,-500.0,0.00038356,2]
[423623892,1780263061000,-2280.95,0.00038356,2]
[423623887,1780263061000,-595.48952811,0.00038356,2]
[423623891,1780263061000,-2280.95,0.00038356,2]
[423623881,1780263061000,-500.0,0.00038356,2]
[423623893,1780263061000,-2280.95,0.00038356,2]
[423623884,1780263061000,-500.0,0.00038356,2]
[423623905,1780263061000,-2280.95,0.00038356,2]
[423623882,1780263061000,-500.0,0.00038356,2]
[423623897,1780263061000,-2280.95,0.00038356,2]
[423623900,1780263061000,-2280.95,0.00038356,2]
[423623902,1780263061000,-2280.95,0.00038356,2]
[423623896,1780263061000,-2280.95,0.00038356,2]
[423623907,1780263061000,-2280.95,0.00038356,2]
[423623895,1780263061000,-2280.95,0.00038356,2]
[423623908,1780263061000,-2280.95,0.00038356,2]
[423623894,1780263061000,-2280.95,0.00038356,2]
[423623890,1780263061000,-2280.95,0.00038356,2]
[423623886,1780263061000,-314.50421768,0.00038356,2]
[423623885,1780263061000,-500.0,0.00038356,2]
[423623903,1780263061000,-2280.95,0.00038356,2]
[423623987,1780263062000,-1125.0,0.00038356,120]
[423623985,1780263062000,-1125.0,0.00038356,120]
[423623981,1780263062000,-1125.0,0.00038356,120]
[423623979,1780263062000,-1125.0,0.00038356,120]
[423623984,1780263062000,-1125.0,0.00038356,120]
[423623965,1780263062000,-300.0,0.00038356,2]
[423623989,1780263062000,-1125.0,0.00038356,120]
[423623978,1780263062000,-170.45011995,0.00038356,2]
[423623972,1780263062000,-300.0,0.00038356,2]
[423623975,1780263062000,-300.0,0.00038356,2]
[423623973,1780263062000,-300.0,0.00038356,2]
[423623988,1780263062000,-1125.0,0.00038356,120]
[423623977,1780263062000,-300.0,0.00038356,2]
[423623995,1780263062000,-1125.0,0.00038356,120]
[423623980,1780263062000,-1125.0,0.00038356,120]
[423623982,1780263062000,-1125.0,0.00038356,120]
[423623986,1780263062000,-1125.0,0.00038356,120]
[423623992,1780263062000,-1125.0,0.00038356,120]
[423623993,1780263062000,-1125.0,0.00038356,120]
[423623990,1780263062000,-1125.0,0.00038356,120]
[423623997,1780263062000,-1125.0,0.00038356,120]
[423623998,1780263062000,-1125.0,0.00038356,120]
[423623994,1780263062000,-1125.0,0.00038356,120]
[423624000,1780263062000,-1125.0,0.00038356,120]
[423623991,1780263062000,-1125.0,0.00038356,120]
[423623999,1780263062000,-1125.0,0.00038356,120]
[423623996,1780263062000,-1125.0,0.00038356,120]
[423623971,1780263062000,-300.0,0.00038356,2]
[423623983,1780263062000,-1125.0,0.00038356,120]
[423623970,1780263062000,-300.0,0.00038356,2]
[423623954,1780263062000,-500.0,0.00038356,2]
[423623976,1780263062000,-300.0,0.00038356,2]
[423624001,1780263062000,-1125.0,0.00038356,120]
[423623939,1780263062000,-500.0,0.00038356,2]